Cogmind - Beta 13 @@@ ROGUE MODE // 2024.06.03 @ 14:21:04 Player: Kat Result: Self-destructed Performance ------------- Evolutions (2) 1000 Regions Visited (3) 600 Robots Destroyed (26) 130 Value Destroyed (648) 648 Prototype IDs (1) 20 Alien Tech Used (0) 0 Bonus (0) 0 TOTAL SCORE: 2398 Bonus ------- None Cogmind --------- Core Integrity 451/550 Matter 265/300 Energy 11/100 System Corruption 2% Temperature Cool (0) Movement Core (50) Location -8/Materials Parts ------- > --- POWER (1) -------- (None) > --- PROPULSION (4) --- (None) > --- UTILITY (4) ------ Weight Redist. System Signal Interpreter Advanced Targeting Computer > --- WEAPON (2) ------- Improved Medium Laser > --- INVENTORY (5) ---- Heat Sink Reactive Plating Hacking Suite Grenade Launcher Peak State ------------ > --- POWER ------------ Ion Engine > --- PROPULSION ------- Aluminum Leg Aluminum Leg > --- UTILITY ---------- Small Storage Unit Hardened Light Armor Plating > --- WEAPON ----------- Riot Gun Light EM Pulse Cannon > --- INVENTORY -------- Aluminum Leg Heat Sink Sensor Array Signal Interpreter Hardened Light Armor Plating Hacking Suite Light Cannon Grenade Launcher [Rating: 12] Favorites ----------- Power Ion Engine Engine Ion Engine Propulsion Aluminum Leg Leg Aluminum Leg Utility Small Storage Unit Device Heat Sink Storage Small Storage Unit Processor Signal Interpreter Protection Hardened Light Armor Plating Weapon Light EM Pulse Cannon Energy Gun Small Laser Energy Cannon Light EM Pulse Cannon Ballistic Gun Assault Rifle Ballistic Cannon Light Cannon Launcher Grenade Launcher Build | -11 -10 -10 -8 ------- Run | Yrd Mat Sub Mat Slots Evolved 4 | . . . 4 Power . | . . . . Propulsion 2 | . . . 2 Utility 2 | . . . 2 Weapon . | . . . . Parts Attached 41 | 6 23 5 7 Power 2 | 1 1 . . Engine 2 | 1 1 . . Core . | . . . . Reactor . | . . . . Propulsion 12 | 2 10 . . Treads . | . . . . Leg 12 | 2 10 . . Wheel . | . . . . Hover . | . . . . Flight . | . . . . Utility 10 | 1 2 2 5 Device 3 | . 1 1 1 Storage 1 | 1 . . . Processor 2 | . . 1 1 Hackware . | . . . . Protection 4 | . 1 . 3 Artifact . | . . . . Weapon 17 | 2 10 3 2 Energy Gun 9 | . 6 2 1 Energy Cannon 4 | . 4 . . Ballistic Gun 2 | 2 . . . Ballistic Cannon 1 | . . 1 . Launcher 1 | . . . 1 Special Weapon . | . . . . Impact Weapon . | . . . . Slashing Weapon . | . . . . Piercing Weapon . | . . . . Special Melee Weapon . | . . . . Unidentified Prototypes 1 | . . . 1 Parts Lost 3 | . . 3 . Power . | . . . . Propulsion . | . . . . Utility 1 | . . 1 . Weapon 2 | . . 2 . Highest Loss Streak 1 | . . 1 . To Critical Strikes . | . . . . Average Slot Usage (%) 91 | . 96 87 34 Engine 12 | . 14 12 . Leg 25 | . 28 24 . Device 3 | . 4 . 5 Storage 12 | . 14 12 . Processor 1 | . . 1 15 Protection 7 | . 6 12 4 Energy Gun 4 | . 4 5 4 Energy Cannon 15 | . 17 14 . Ballistic Gun 4 | . 6 . . Naked Turns 1 | . . 1 . Heaviest Build 23 | 13 23 23 8 Greatest Support 20 | 20 20 20 9 Greatest Overweight (x) 4 | 4 1 1 . Average Overweight (x) . | . . . . Largest Inventory Capacity 8 | 8 8 8 5 Average Capacity 7 | 7 8 7 5 Most Carried 8 | 2 8 8 5 Average Carried 6 | 1 7 7 3 Final Capacity 8 | 8 8 5 5 Final Carried 8 | 2 8 5 4 Class Distribution -------------------- 95% | Mutant 4% | Scavenger-Mutant Dominant Class ---------------- Mutant | -10/Materials Mutant | -10/Subcaves Mutant | -8/Materials Resources | -11 -10 -10 -8 ----------- Run | Yrd Mat Sub Mat Matter Collected 629 | 172 366 38 53 Remotely . | . . . . Salvage Created 885 | . 726 91 68 Parts 55 | . 48 3 4 Haulers Intercepted 2 | . 2 . . Recyclers Shooed . | . . . . Parts Field Recycled . | . . . . Retrieved Matter . | . . . . Parts Self-Destructed 8 | . . 8 . Prevented . | . . . . Kills | -11 -10 -10 -8 ------- Run | Yrd Mat Sub Mat Combat Hostiles Destroyed 16 | . 13 2 1 Guns 8 | . 6 1 1 Cannons 7 | . 6 1 . AOE 1 | . 1 . . Classes Destroyed 8 | . 6 1 1 Worker 1 | . 1 . . Hauler 2 | . 2 . . Operator 4 | . 3 . 1 Watcher 3 | . 3 . . Swarmer 3 | . 3 . . Grunt 10 | . 10 . . Sentry 1 | . . . 1 Subdweller 2 | . . 2 . Best Kill Streak 4 | . 4 2 1 Combat Bots Only 4 | . 4 2 1 Max Kills in Single Turn 2 | . 2 1 1 Gunslinging 1 | . 1 . . Exploded 1 | . 1 . . Melee . | . . . . Uniques/NPCs Destroyed . | . . . . Combat | -11 -10 -10 -8 -------- Run | Yrd Mat Sub Mat Hostile Shots Fired 105 | . 51 42 12 Missed 37 | . 17 16 4 Damage Taken 1400 | . 516 693 191 Core 310 | . 82 129 99 Absorbed by Shields . | . . . . Regen/Repaired (Parts) 29 | . 29 . . Core Remaining (%) 57 | 100 . 15 . Volleys Fired 68 | . 52 10 6 Largest 2 | . 2 2 1 Hottest 112 | . 112 106 56 Shots Fired 128 | . 104 18 6 Gun 84 | . 68 10 6 Cannon 44 | . 36 8 . Launcher . | . . . . Special . | . . . . Kinetic 28 | . 24 4 . Thermal 46 | . 40 . 6 Explosive . | . . . . Electromagnetic 54 | . 40 14 . Robot Hit Streak 9 | . 7 8 9 Robot Miss Streak 5 | . 5 3 . Penetration Max . | . . . . Secondary Targets 1 | . 1 . . Max Gunslinging Chain 1 | . 1 . . Shots Hit Robots 78 | . 57 15 6 Core Hits 38 | . 29 6 3 Critical Kills . | . . . . Critical Parts Destroyed . | . . . . Critical Strikes . | . . . . Melee Attacks . | . . . . Impact . | . . . . Slashing . | . . . . Piercing . | . . . . Sneak Attacks . | . . . . Combat Hostiles . | . . . . Follow-up Attacks . | . . . . Damage Inflicted 1350 | . 1028 221 101 Guns 664 | . 443 120 101 Cannons 578 | . 477 101 . Explosions 108 | . 108 . . Melee . | . . . . Ramming . | . . . . Kinetic 183 | . 136 47 . Thermal 500 | . 399 . 101 Explosive . | . . . . Electromagnetic 667 | . 493 174 . Impact . | . . . . Slashing . | . . . . Piercing . | . . . . Highest Corruption 2 | . . . 2 Average Corruption 2 | . . . 2 Corruption Purged . | . . . . Corruption Blocked . | . . . . Overload Shots . | . . . . Overflow Damage 45 | . 45 . . Projectiles 45 | . 45 . . Explosions . | . . . . Melee . | . . . . Knockbacks 1 | . . 1 . Impact . | . . . . Kinetic 1 | . . 1 . Secondary . | . . . . Self-Inflicted Damage 148 | . 148 . . Shots 2 | . 2 . . Rammed . | . . . . Targets Rammed . | . . . . Kicked . | . . . . Crushed . | . . . . Highest Temperature 192 | . 192 27 47 Average Temperature 41 | . 46 15 21 Received Heat Transfer 309 | . 159 123 27 Siege Activations . | . . . . Robots Corrupted . | . . . . Combat Hostiles . | . . . . Parts Fried 5 | . 3 2 . Impact Corruptions . | . . . . Robots Melted . | . . . . Combat Hostiles . | . . . . Parts Melted . | . . . . Heat Transferred 1072 | . 850 . 222 Parts Sabotaged . | . . . . Parts Stolen . | . . . . Parts Stripped . | . . . . Power Chain Reactions 3 | . 3 . . Alert | -11 -10 -10 -8 ------- Run | Yrd Mat Sub Mat Peak Influence 291 | . 291 . 65 Initial . | . . . . Average 133 | . 147 . 29 Maximum Alert Level 1 | . 1 . . Low Security (%) 84 | 100 82 . 100 Level 1 15 | . 17 . . Level 2 . | . . . . Level 3 . | . . . . Level 4 . | . . . . Level 5 . | . . . . High Security . | . . . . Max Security . | . . . . Squads Dispatched 5 | . 4 . 1 Investigation 2 | . 2 . . Extermination . | . . . . Reinforcement 3 | . 2 . 1 Assault . | . . . . Garrison . | . . . . Intercept . | . . . . Searches Triggered . | . . . . Construction Impeded . | . . . . Haulers Reinforced . | . . . . Active Scanning Responses . | . . . . Cargo Convoy Interrupts . | . . . . Stealth | -11 -10 -10 -8 --------- Run | Yrd Mat Sub Mat Distress Signals 3 | . 2 . 1 Communications Jammed . | . . . . Distress Signals . | . . . . Times Spotted 33 | . 22 5 6 Peak Tracking Total 5 | . 5 3 4 Tactical Retreats 1 | . 1 . . Traps | -11 -10 -10 -8 ------- Run | Yrd Mat Sub Mat Traps Triggered 5 | . 2 2 1 Indirectly . | . . . . Trap Hack Attempts . | . . . . Triggered . | . . . . Disarmed . | . . . . Reprogrammed . | . . . . Reused . | . . . . Traps Extracted . | . . . . Installed . | . . . . Triggered . | . . . . Machines | -11 -10 -10 -8 ---------- Run | Yrd Mat Sub Mat Machines Disabled 1 | . 1 . . Max in Single Turn 1 | . 1 . . Machines Repaired . | . . . . Machines Dismantled . | . . . . Machines Sabotaged . | . . . . Overloaded Fab Kills . | . . . . Hacking | -11 -10 -10 -8 --------- Run | Yrd Mat Sub Mat Machines Accessed 7 | . 6 1 . Terminals 5 | . 5 . . Fabricators . | . . . . Repair Stations 1 | . 1 . . Recycling Units . | . . . . Scanalyzers . | . . . . Garrison Access . | . . . . Total Hacks 26 | . 20 6 . Successful 12 | . 6 6 . Failed 14 | . 14 . . Catastrophic 2 | . 2 . . Database Lockouts . | . . . . Manual 15 | . 14 1 . Terminals 17 | . 17 . . Fabricators . | . . . . Repair Stations 3 | . 3 . . Recycling Units . | . . . . Scanalyzers . | . . . . Garrison Access . | . . . . Terminal Hacks 10 | . 4 6 . Record 6 | . . 6 . Branch Access Points 1 | . 1 . . Emergency Access Points 1 | . 1 . . Zone Layout 2 | . 2 . . Fabricator Hacks . | . . . . Repair Station Hacks 2 | . 2 . . Scan Component 1 | . 1 . . Repair 1 | . 1 . . Recycling Unit Hacks . | . . . . Scanalyzer . | . . . . Garrison Access Hacks . | . . . . Unauthorized Hacks . | . . . . Terminals . | . . . . Fabricators . | . . . . Repair Stations . | . . . . Recycling Units . | . . . . Scanalyzers . | . . . . Garrison Access . | . . . . Data Cores Recovered . | . . . . Used . | . . . . Hacking Detections 5 | . 5 . . Full Trace Events 4 | . 4 . . Feedback Events . | . . . . Feedback Blocked . | . . . . Robot Schematics Acquired . | . . . . Robots Built . | . . . . Authchips . | . . . . Time . | . . . . Total Robot Build Rating . | . . . . Part Schematics Acquired . | . . . . Parts Built . | . . . . Authchips . | . . . . Time . | . . . . Total Part Build Rating . | . . . . Parts Repaired 1 | . 1 . . Time 13 | . 13 . . Parts Recycled . | . . . . Recycled Matter . | . . . . Retrieved Matter . | . . . . Retrieved Components . | . . . . Parts Scanalyzed . | . . . . Part Schematics Acquired . | . . . . Parts Damaged . | . . . . Bothacking | -11 -10 -10 -8 ------------ Run | Yrd Mat Sub Mat Used RIF Installer . | . . . . Robots Hacked . | . . . . Non-combat . | . . . . Combat . | . . . . Robot Hacks Applied . | . . . . Relay Couplers Released . | . . . . Fabnet Peak Effective % . | . . . . Robots Rewired . | . . . . Allies Hacked . | . . . . Hacks Repelled . | . . . . Allies | -11 -10 -10 -8 -------- Run | Yrd Mat Sub Mat Total Allies . | . . . . Largest Group . | . . . . Highest-Rated Group . | . . . . Highest-Rated Ally . | . . . . Total Orders . | . . . . Ally Attacks . | . . . . Total Damage . | . . . . Kills . | . . . . Allies Corrupted . | . . . . Allies Melted . | . . . . Intel | -11 -10 -10 -8 ------- Run | Yrd Mat Sub Mat Robot Analysis Total . | . . . . Derelict Logs Recovered . | . . . . Drone Launches . | . . . . Drone Recoveries . | . . . . Exploration | -11 -10 -10 -8 ------------- Run | Yrd Mat Sub Mat Turns Passed 2296 | 89 1638 457 112 Spaces Moved 1223 | 59 786 283 95 Core 218 | 14 . 109 95 Treads . | . . . . Legs 1005 | 45 786 174 . Wheels . | . . . . Hover . | . . . . Flight . | . . . . Fastest Speed 50 | 50 120 50 50 Average Speed 138 | 128 154 127 50 Slowest Speed 250 | 250 190 190 50 Overloaded Moves . | . . . . Propulsion Burnouts . | . . . . Robots Hopped . | . . . . Cave-ins Triggered . | . . . . Exploration Rate (%) 35 | 4 99 27 13 Regions Visited 3 Branch Regions 1 Pre-discovered Areas . | . . . . Known Exits Taken 1 | . . 1 . Unknown Exits Taken 2 | 1 1 . . Scrap Searched . | . . . . Spaces Dug . | . . . . Terrain Destroyed 34 | . 34 . . Melee . | . . . . Projectile . | . . . . AOE 34 | . 34 . . Terrain Rammed . | . . . . Walls Destroyed . | . . . . Machines Disabled . | . . . . Actions | -11 -10 -10 -8 --------- Run | Yrd Mat Sub Mat Total 1694 | 69 1114 357 154 Wait 311 | 3 213 58 37 Move 1220 | 58 785 282 95 Hop . | . . . . Pick Up 21 | 2 17 . 2 Fast Attach 17 | 6 4 3 4 Attach 6 | . 1 2 3 Detach 6 | . 2 1 3 Swap 18 | . 18 . . Drop 27 | . 22 1 4 Fire 68 | . 52 10 6 Melee . | . . . . Ram . | . . . . Kick . | . . . . Crush . | . . . . Escape Stasis . | . . . . Rewire . | . . . . Trap . | . . . . Miscellaneous . | . . . . Route ------- -11/Scrapyard -10/Materials (discovered 6 exits: [*Mat x3] / *Min x2 / *Sub) -10/Subcaves -8/Materials History --------- Turn | Location | Event 24 | -11/Scrapyard | Discovered new exit (range 16) 90 | -11/Scrapyard | Entered Materials 105 | -10/Materials | Identified exit to Mines 300 | -10/Materials | Build established: Mutant 747 | -10/Materials | Discovered new exit (range 4) 896 | -10/Materials | Discovered new exit (range 16) 1289 | -10/Materials | Repaired Aluminum Leg 1497 | -10/Materials | Discovered new exit (range 12) 1701 | -10/Materials | Discovered new exit (range 10) 1728 | -10/Materials | Entered Subcaves 1867 | -10/Subcaves | A swath of the cavern ceiling suddenly collapsed 1968 | -10/Subcaves | Visited Clippyterm 1974 | -10/Subcaves | Learned Factory trap positions 2078 | -10/Subcaves | A Subdweller sparked back to life 2078 | -10/Subcaves | A Subdweller sparked back to life 2124 | -10/Subcaves | Released all parts (6) 2128 | -10/Subcaves | Core integrity fell below 50% 2130 | -10/Subcaves | Core integrity fell below 20% 2167 | -10/Subcaves | Shifting Twisted Machinery released Sub. Laser 2176 | -10/Subcaves | Shifting Twisted Machinery released Sub. Beam Cannon 2181 | -10/Subcaves | Discovered new exit (range 3) 2182 | -10/Subcaves | Identified exit to Materials 2185 | -10/Subcaves | Entered Materials 2185 | -8/Materials | Evolved 4 slots: Propulsion x2, Utility x2 2297 | -8/Materials | Self-destructed Last Messages --------------- 02219_ Acquired Adv. Targeting Computer. 02223_ ALERT: Hostiles spotted, dispatching reinforcements to Terminal M012. 02227_ Acquired Weight Redist. System. 02237_ Triggered Shock Trap. 02237_ The floor emits a surge of raw power. 02237_ System corrupted (+2). 02241_ Acquired Prototype Energy Gun. 02241_ Identified Imp. Medium Laser. 02244_ K-01 Serf collects debris. 02244_ O-16 Technician destroyed. 02284_ Y-45 Defender destroyed. 02286_ Acquired 53 matter. 02287_ W-25 Informer sends out distress signal. 02288_ Dropped Hrd. Light Armor Plating. 02292_ Neutrino Reactor explodes. 02292_ Door malfunctions. 02292_ Chain reaction triggered in Corrupted Imp. Ion Engine. 02296_ U-05 Engineer lays Concrete. Map ----- +----------------------------------------------------+ | ?????????????????????????????????????????????????? | | ?????????????????????????????????????????????????? | | ?????????????????????????????????????????????????? | | ?????????????????????????????????????????????????? | | ??????????????????????????+??????????????????????? | | ???????????????????????### ###???????????????????? | | ???????????????????????# # ??????????????????? | | ???????????????????????# ???????????????????? | | ???????????????????????+ ???????????????????? | | #??????????????????????? ????????????????????? | | ???????????????????????? ????????????????????? | | ########????????????????#u #????????????????????? | | ?????????????????# g#????????????????????? | | """ ?#######?????????# #????????????????????? | | ! """ ## #?????????# #????????????????????? | | """ ## """#?????????# g#????????????????????? | | ## """#?????????# #????????????????????? | | ## """#????????##w ##???????????????????? | | "T" ## """#?######## #???????????????????? | | """ # """### % #???????????????????? | | ? ?# + ! T #???????????????????? | | ##+#########+#### ^ #???????????????????? | | #??## #####u=[ #???????????????????? | | #####+#####+#?####;;;;###?????????????????? | | ! #?# #?# #?????????????????? | | +##### #?# #?# @ #?????????????????? | | #?# ### #?# ! #?????????????????? | | "" #?# # #?# #?????????????????? | | "" ### + #?# #?????????????????? | | "" + # #?# #?????????????????? | | ### #! #?# #?????????????????? | | #?# # #?# #?????????????????? | | ####?# ###########?###########?????????????????? | | ?????# #???????????????????????????????????????? | | ?????# #???????????????????????????????????????? | | ?????# #???????????????????????????????????????? | | ?????# #???????????????????????????????????????? | | ?????+ #???????????????????????????????????????? | | ?????# #???????????????????????????????????????? | | ?????# #???????????????????????????????????????? | | ?????# #???????????????????????????????????????? | | ????? ???????????????????????????????????????? | | ????? ???????????????????????????????????????? | | ????? ???????????????????????????????????????? | | ????? ???????????????????????????????????????? | | ?????????????????????????????????????????????????? | | ?????????????????????????????????????????????????? | | ?????????????????????????????????????????????????? | | ?????????????????????????????????????????????????? | | ?????????????????????????????????????????????????? | +----------------------------------------------------+ Best States ------------- Heat Dissipation 35 Energy Generation 10 Energy Capacity 250 Matter Stores 300 Matter Capacity 300 Sight Range 16 Terrain Scan Density 10 Additional Mass Support 6 Armor Coverage 150 Evasion (%) 55 Targeting Accuracy 8 Item Schematics ----------------- None Robot Schematics ------------------ None Fabricated ------------ Nothing Alien Tech Used ----------------- None Achievements -------------- None Challenges ------------ None Game ------ Seed StealthGravmagGreatsword Manual? 0 Play Time 00:28:41 Cumulative 15.4 hours Start 2024.06.03 @ 12:35:22 End 2024.06.03 @ 14:21:04 Sessions 1 Manual Loads 0 Difficulty Rogue Special Mode None Game No. 32 Rogue 32 Adventurer 0 Explorer 0 Win Type - Total 0 Types 0/0/0/0/0/0/0/0/0 Lore% 16 Gallery% 19 Achievement% 15 Wizard Run 0 Options --------- Layout 1 ASCII 0 Keyboard 0 Movement Mouse Keybinds 0 Fullscreen 2 Font 24/Terminus Map View 50x35 Zoom Use 0% Tactical HUD 1 Map Filters NONE Filters NONE Steam 1 RUN: 3bcc95c6-aa72-48a0-bae3-7146392c31dd